bitfinex-derivatives/quotes_BTCF0:USTF0_20250501
["timestamp","ask_amount","ask_price","bid_price","bid_amount"]
[1746065687873,0.57974288,94748.0,94747.0,0.22828316]
[1746065688668,0.61764288,94748.0,94747.0,0.22828316]
[1746065689067,0.61764288,94748.0,94747.0,0.10628316]
[1746065690359,0.97844288,94748.0,94747.0,0.10628316]
[1746065690558,0.97844288,94748.0,94747.0,0.10128316]
[1746065692465,0.97844288,94748.0,94747.0,0.31236106]
[1746065692867,0.97844288,94748.0,94747.0,0.10128316]
[1746065699072,0.25684288,94748.0,94747.0,0.10128316]
[1746065699279,0.97844288,94748.0,94747.0,0.10128316]
[1746065700478,0.97844288,94748.0,94747.0,0.31236106]
[1746065701279,0.72946728,94748.0,94747.0,0.31236106]
[1746065701667,0.72942728,94748.0,94747.0,0.31236106]
[1746065701874,0.72946728,94748.0,94747.0,0.31236106]
[1746065702172,0.72946728,94748.0,94747.0,0.43436106]
[1746065702579,0.94054288,94748.0,94747.0,0.43436106]
[1746065703784,0.3608,94764.0,94763.0,0.2110422]
[1746065704078,0.3608,94764.0,94763.0,0.4610422]
[1746065704278,0.36084,94764.0,94763.0,0.5830422]
[1746065704871,0.37063613,94764.0,94763.0,0.76206619]
[1746065705074,0.37059613,94764.0,94763.0,0.76206619]
[1746065705472,0.37063613,94764.0,94763.0,0.76206619]
[1746065706480,0.37263613,94764.0,94763.0,0.76206619]
[1746065707071,0.37259613,94764.0,94763.0,0.76206619]
[1746065707274,0.37263613,94764.0,94763.0,0.76206619]
[1746065707482,0.37063613,94764.0,94763.0,0.76206619]
[1746065707684,0.36859613,94764.0,94763.0,0.76206619]
[1746065707868,0.36863613,94764.0,94763.0,0.76206619]
[1746065709186,0.00783613,94764.0,94763.0,0.76206619]
[1746065709684,0.2110087,94779.0,94778.0,0.2110066]
[1746065709884,0.2110087,94779.0,94778.0,0.4410066]
[1746065710177,0.2110087,94779.0,94778.0,0.5630066]
[1746065710385,0.2110087,94779.0,94778.0,0.5990066]
[1746065711079,0.2495087,94779.0,94778.0,0.6339066]
[1746065712382,0.04637028,94779.0,94778.0,0.64457462]
[1746065712587,0.25737688,94779.0,94778.0,0.64457462]
[1746065713085,0.26137688,94779.0,94778.0,0.64457462]
[1746065713286,0.01487028,94779.0,94778.0,0.64457462]
[1746065713486,0.01491028,94779.0,94778.0,0.64457462]
[1746065713689,0.05197028,94779.0,94778.0,0.64457462]
[1746065713888,0.05201028,94779.0,94778.0,0.64457462]
[1746065714788,0.26301688,94779.0,94778.0,0.64457462]
[1746065718281,0.05201028,94779.0,94778.0,0.64457462]
[1746065718682,0.26301688,94779.0,94778.0,0.6339066]
[1746065719490,0.26301688,94779.0,94778.0,0.64448717]
[1746065720196,0.26301688,94779.0,94778.0,0.6339066]
[1746065722193,0.26301688,94779.0,94778.0,0.64469548]
[1746065723595,0.30051688,94779.0,94778.0,0.64469548]
[1746065727297,0.30051688,94779.0,94778.0,0.60869548]
[1746065730001,0.30051688,94779.0,94778.0,0.41912]
[1746065730190,0.30051688,94779.0,94778.0,0.352]
[1746065730597,0.0527582,94768.0,94764.0,0.6268393]
[1746065730799,0.5718378,94765.0,94764.0,0.8068393]
[1746065731191,0.5718378,94765.0,94764.0,0.9640393]
[1746065732200,0.3608,94765.0,94764.0,1.0311593]
[1746065733198,0.3608,94765.0,94764.0,0.9640393]
[1746065733393,0.3608,94765.0,94764.0,1.0311593]
[1746065734791,0.3608,94765.0,94764.0,0.6153593]
[1746065734996,0.3608,94765.0,94764.0,0.6513593]
[1746065735398,0.0365,94767.0,94766.0,0.2110356]
[1746065735604,0.0365,94767.0,94766.0,0.4410356]
[1746065735907,0.03654,94767.0,94766.0,0.4410356]
[1746065736199,0.03654,94767.0,94766.0,0.5630356]
[1746065736608,0.03754,94767.0,94766.0,0.5630356]
[1746065737493,0.03854,94767.0,94766.0,0.5630356]
[1746065747909,0.2851733,94767.0,94766.0,0.5630356]
[1746065748108,0.07414,94767.0,94766.0,0.6299556]
[1746065755911,0.07414,94767.0,94766.0,0.5630356]
[1746065756112,0.07414,94767.0,94766.0,0.6299556]
[1746065765930,0.0741,94767.0,94766.0,0.6299556]
[1746065766726,0.2851333,94767.0,94766.0,0.6299556]
[1746065767728,0.0741,94767.0,94766.0,0.6299556]
[1746065768118,0.2851333,94767.0,94766.0,0.6299556]
[1746065768527,0.0741,94767.0,94766.0,0.6299556]
[1746065769217,0.2851333,94767.0,94766.0,0.5630356]
[1746065769418,0.0741,94767.0,94766.0,0.6299556]
[1746065770428,0.0741,94767.0,94766.0,0.6677556]
[1746065777227,0.00787028,94779.0,94778.0,0.2110088]
[1746065777529,0.246491,94786.0,94785.0,0.2109932]
[1746065777733,0.0355,94786.0,94785.0,0.4409932]
[1746065778124,0.246491,94786.0,94785.0,0.4760932]
[1746065778320,0.246531,94786.0,94785.0,0.4760932]
[1746065778524,0.25456103,94786.0,94785.0,0.4760932]
[1746065778729,0.25456103,94786.0,94785.0,0.4409932]
[1746065780137,0.26456103,94786.0,94785.0,0.4409932]
[1746065780338,0.30276103,94786.0,94785.0,0.4409932]
[1746065782423,0.34106103,94786.0,94785.0,0.4409932]
[1746065785942,0.30276103,94786.0,94785.0,0.4409932]
[1746065786540,0.30276103,94786.0,94785.0,0.23]
[1746065786735,0.2110111,94778.0,94777.0,0.21101]
[1746065786934,0.2110111,94778.0,94777.0,0.33101]
[1746065787145,0.2110111,94778.0,94777.0,0.36941]
[1746065787536,0.2850111,94778.0,94777.0,0.36941]
[1746065788146,0.2880111,94778.0,94777.0,0.36941]
[1746065788740,0.2910111,94778.0,94777.0,0.36941]
[1746065790736,0.6518111,94778.0,94777.0,0.1584]
[1746065790943,0.6518111,94778.0,94777.0,0.3694111]
[1746065791649,0.6518111,94778.0,94777.0,0.3310111]
[1746065793548,0.6518111,94778.0,94777.0,0.12]
[1746065793841,0.6518111,94778.0,94777.0,0.3310111]
[1746065795245,0.6518111,94778.0,94777.0,0.12]
[1746065797249,0.7738111,94778.0,94777.0,0.12]
[1746065798852,0.7738111,94778.0,94777.0,0.3310111]
[1746065799149,0.6518111,94778.0,94777.0,0.3310111]
[1746065799351,0.6518511,94778.0,94777.0,0.3310111]
[1746065800448,0.36684,94778.0,94777.0,0.3310111]
[1746065800647,0.3668,94778.0,94777.0,0.3310111]
[1746065800949,0.36684,94778.0,94777.0,0.3310111]
[1746065801151,0.3668,94778.0,94777.0,0.4902111]
[1746065801351,0.5778488,94778.0,94777.0,0.4902111]
[1746065802449,0.5778488,94778.0,94777.0,0.5565711]
[1746065812265,0.6147488,94778.0,94777.0,0.4345711]
[1746065812457,0.6522488,94778.0,94777.0,0.4345711]
[1746065813466,0.5778488,94778.0,94777.0,0.4345711]
[1746065814066,0.5778488,94778.0,94777.0,0.5565711]
[1746065816967,0.36684,94778.0,94777.0,0.5565711]
[1746065817464,0.5778488,94778.0,94777.0,0.5565711]
[1746065820359,0.36684,94778.0,94777.0,0.5565711]
[1746065820864,0.00604,94778.0,94777.0,0.34556]
[1746065821055,0.2522488,94778.0,94777.0,0.5565711]
[1746065821262,0.2522488,94778.0,94777.0,0.3682111]
[1746065821459,0.2522488,94778.0,94777.0,0.4345711]
[1746065822069,0.2522488,94778.0,94777.0,0.5565711]
[1746065824971,0.04124,94778.0,94777.0,0.5565711]
[1746065825661,0.07894,94778.0,94777.0,0.5565711]
[1746065829073,0.00604,94778.0,94777.0,0.9173711]
[1746065829376,5.401e-05,94784.0,94780.0,0.0527506]
[1746065829565,0.0748,94793.0,94783.0,0.2109977]
[1746065829770,0.0748,94793.0,94786.0,0.210991]
[1746065829972,0.0748,94793.0,94786.0,0.460991]
[1746065830168,0.0748,94793.0,94786.0,0.653291]
[1746065830369,0.13434793,94794.0,94793.0,0.2109754]
[1746065830672,0.035,94799.0,94798.0,0.2109643]
[1746065830865,0.035,94799.0,94798.0,0.4609643]
[1746065831066,0.0734,94799.0,94798.0,0.4609643]
[1746065831266,0.0734,94799.0,94798.0,0.6194643]
[1746065831872,0.08135809,94799.0,94798.0,0.6194643]
[1746065832271,0.08835809,94799.0,94798.0,0.6204643]
[1746065832770,0.08835809,94799.0,94798.0,0.63111512]
[1746065832971,0.09235809,94799.0,94798.0,0.63111512]
[1746065833162,0.09235809,94799.0,94798.0,0.50911512]
[1746065833769,0.30332019,94799.0,94798.0,0.251]
[1746065834270,0.42532019,94799.0,94798.0,0.251]
[1746065835173,0.30332019,94799.0,94798.0,0.251]
[1746065837059,0.42532019,94799.0,94798.0,0.251]
[1746065838671,0.42532019,94799.0,94798.0,0.4619643]
[1746065838869,0.30332019,94799.0,94798.0,0.4619643]
[1746065839470,0.30332019,94799.0,94798.0,0.251]
[1746065841065,0.30332019,94799.0,94798.0,0.001]
[1746065843872,0.30332019,94799.0,94798.0,0.2119643]
[1746065844463,0.09235809,94799.0,94798.0,0.3819643]
[1746065845169,0.30332019,94799.0,94798.0,0.3819643]
[1746065845567,0.30336019,94799.0,94798.0,0.3819643]
[1746065845770,0.30336019,94799.0,94798.0,0.4188643]
[1746065846170,0.01899809,94799.0,94798.0,0.4188643]
[1746065846676,0.01895809,94799.0,94798.0,0.4188643]
[1746065846878,0.01899809,94799.0,94798.0,0.4188643]
[1746065847078,0.01899809,94799.0,94798.0,0.5408643]
[1746065848277,0.13430907,94801.0,94798.0,0.34552937]
[1746065848483,4e-05,94799.0,94798.0,0.593605]
[1746065848774,0.13430907,94801.0,94800.0,0.2109599]
[1746065849077,0.13430907,94801.0,94800.0,0.4909599]
[1746065849270,0.13430907,94801.0,94800.0,0.50665685]
[1746065849579,0.14030907,94801.0,94800.0,0.50665685]
[1746065850176,0.012,94801.0,94800.0,0.62865685]
[1746065850379,0.012,94801.0,94800.0,0.62965685]
[1746065852177,0.012,94801.0,94800.0,0.62974825]
[1746065853072,0.012,94801.0,94800.0,0.6139599]
[1746065860078,0.012,94801.0,94800.0,0.6297182]
[1746065861171,0.012,94801.0,94800.0,0.6802799]
[1746065862179,0.012,94801.0,94800.0,0.5582799]
[1746065864271,0.0346,94813.0,94800.0,0.46932]
[1746065864483,0.0346,94813.0,94810.0,0.2109376]
[1746065864685,0.0346,94813.0,94812.0,0.2109332]
[1746065864988,0.04259996,94813.0,94812.0,0.4509332]
[1746065865181,0.00799996,94813.0,94812.0,0.4509332]
[1746065865386,5.401e-05,94816.0,94812.0,0.4509332]
[1746065865387,0.21097951,94816.0,94815.0,0.2109265]
[1746065865685,0.2109255,94816.0,94815.0,0.8517265]
[1746065865887,0.2109655,94816.0,94815.0,0.8517265]
[1746065866876,0.2119655,94816.0,94815.0,0.8517265]
[1746065867073,0.2129655,94816.0,94815.0,0.86231401]
[1746065867277,0.2129655,94816.0,94815.0,0.92859401]
[1746065868274,0.22087842,94816.0,94815.0,0.92859401]
[1746065868989,0.22087842,94816.0,94815.0,0.70708]
[1746065869480,0.00995292,94816.0,94815.0,0.9180065]
[1746065870073,0.00991292,94816.0,94815.0,0.93449036]
[1746065870274,0.00158276,94819.0,94818.0,0.2109198]
[1746065870472,0.00158276,94819.0,94818.0,0.50740366]
[1746065870992,0.22037438,94819.0,94818.0,0.29648375]
[1746065871282,0.21254036,94819.0,94818.0,0.29648375]
[1746065871478,0.21254036,94819.0,94818.0,0.50740355]
[1746065871673,0.21254036,94819.0,94818.0,0.4909198]
[1746065871874,0.28414036,94819.0,94818.0,0.5074053]
[1746065872073,0.40614036,94819.0,94818.0,0.4919198]
[1746065872270,0.41396568,94819.0,94818.0,0.4919198]
[1746065873076,0.41396568,94819.0,94818.0,0.5084053]
[1746065874088,0.41396568,94819.0,94818.0,0.50840431]
[1746065878089,0.41396568,94819.0,94818.0,0.29748451]
[1746065879490,0.41396568,94819.0,94818.0,0.29748459]
[1746065880179,0.41396568,94819.0,94818.0,0.01748459]
[1746065881591,0.41396568,94819.0,94818.0,0.001]
[1746065882087,0.41396568,94819.0,94818.0,0.01748461]
[1746065882282,0.41396568,94819.0,94818.0,0.001]
[1746065882591,0.41396568,94819.0,94818.0,0.01748462]
[1746065883480,0.41396568,94819.0,94818.0,0.001]
[1746065889194,0.77476568,94819.0,94818.0,0.001]
[1746065890793,0.77476568,94819.0,94818.0,0.01748578]
[1746065891095,0.77476568,94819.0,94818.0,0.001]
[1746065891292,0.77476568,94819.0,94818.0,0.01748579]
[1746065891796,0.77476568,94819.0,94818.0,0.001]
[1746065900891,0.77472568,94819.0,94818.0,0.001]
[1746065901293,0.77472568,94819.0,94818.0,0.0748]
[1746065902706,0.13144808,94819.0,94818.0,0.47220409]
[1746065903201,0.13140808,94819.0,94818.0,0.47220409]
[1746065903502,0.13144808,94819.0,94818.0,0.47220269]
[1746065903701,0.34236568,94819.0,94818.0,0.47220269]
[1746065904105,0.22036568,94819.0,94818.0,0.59420269]
[1746065905692,0.22036568,94819.0,94818.0,0.59410251]
[1746065906300,0.22036568,94819.0,94818.0,0.47210251]
[1746065908996,0.22036568,94819.0,94818.0,0.4557198]
[1746065909799,0.22036568,94819.0,94818.0,0.2448]
[1746065909996,0.58116568,94819.0,94818.0,0.0375]
[1746065910400,0.65406568,94819.0,94818.0,0.0375]
[1746065912205,0.77606568,94819.0,94818.0,0.0375]
[1746065915209,0.65406568,94819.0,94818.0,0.0375]
[1746065917314,0.77606568,94819.0,94818.0,0.0375]
[1746065920118,0.65406568,94819.0,94818.0,0.0375]
[1746065926616,0.29326568,94819.0,94818.0,0.0375]
[1746065927019,0.65406568,94819.0,94818.0,0.0375]
[1746065930709,0.65406568,94819.0,94811.0,0.0527337]
[1746065930710,0.2109688,94796.0,94794.0,0.06632]
[1746065930912,0.2109688,94796.0,94795.0,0.26107311]
[1746065931217,0.3329688,94796.0,94795.0,0.26107311]
[1746065931721,0.4061688,94796.0,94795.0,0.26107311]
[1746065931917,0.4061688,94796.0,94795.0,0.27107311]
[1746065932516,0.4061688,94796.0,94795.0,0.26607311]
[1746065932719,0.4061688,94796.0,94795.0,0.26907311]
[1746065933322,0.4061688,94796.0,94795.0,0.26607311]
[1746065933521,0.4061688,94796.0,94795.0,0.26707311]
[1746065934224,0.4061688,94796.0,94795.0,0.106]
[1746065934609,0.4061688,94796.0,94795.0,0.105]
[1746065934814,0.4061688,94796.0,94795.0,0.002]
[1746065935108,0.4061688,94796.0,94795.0,0.004]
[1746065938614,0.0527477,94786.0,94782.0,0.00158257]
[1746065938814,0.3395415,94785.0,94784.0,0.0376]
[1746065939021,0.3395415,94785.0,94784.0,0.0976]
[1746065940228,0.2109977,94783.0,94782.0,0.01058257]
[1746065940430,0.2109977,94783.0,94782.0,0.06058257]
[1746065940723,0.2109977,94783.0,94782.0,0.05558257]
[1746065941123,0.3329977,94783.0,94782.0,0.05558257]
[1746065941520,0.3329977,94783.0,94782.0,0.05458257]
[1746065942316,0.3329977,94783.0,94782.0,0.05658257]
[1746065944924,0.3329977,94783.0,94782.0,0.05358257]
[1746065945124,0.3329977,94783.0,94782.0,0.05558257]
[1746065946328,0.2109977,94783.0,94782.0,0.09398257]
[1746065949029,0.2109977,94783.0,94782.0,0.13218257]
[1746065949934,0.2109977,94783.0,94782.0,0.34318247]
[1746065950122,0.2110377,94783.0,94782.0,0.34318247]
[1746065950627,0.2109977,94783.0,94782.0,0.34318247]
[1746065950828,0.2110377,94783.0,94782.0,0.34318247]
[1746065951223,5.401e-05,94788.0,94787.0,0.2109888]
[1746065951423,0.21104951,94793.0,94792.0,0.2109777]
[1746065951625,0.0527407,94801.0,94794.0,0.0527429]
[1746065951830,0.3164526,94801.0,94800.0,0.2109441]
[1746065952030,0.3164526,94801.0,94800.0,0.4409441]
[1746065952437,0.3164926,94801.0,94800.0,0.4409441]
[1746065952626,0.3164926,94801.0,94800.0,0.5160441]
[1746065953026,0.3164926,94801.0,94800.0,0.2860441]
[1746065953224,0.3184926,94801.0,94800.0,0.3771]
[1746065953632,0.3204926,94801.0,94800.0,0.3771]
[1746065954231,0.3184926,94801.0,94800.0,0.3771]
[1746065954627,0.3184926,94801.0,94800.0,0.5880599]
[1746065955041,0.3164926,94801.0,94800.0,0.5880599]
[1746065956233,0.3164926,94801.0,94800.0,0.3771]
[1746065956433,0.3164926,94801.0,94800.0,0.5880599]
[1746065959027,0.3164926,94801.0,94800.0,0.3771]
[1746065960433,0.3164926,94801.0,94800.0,0.5880599]
[1746065960835,0.3164926,94801.0,94800.0,0.3771]
[1746065961227,0.3164926,94801.0,94800.0,0.5880599]
[1746065962535,0.3164926,94801.0,94800.0,0.3771]
[1746065963726,0.3164926,94801.0,94800.0,0.5880599]
[1746065965137,0.3164926,94801.0,94800.0,0.4660599]
[1746065966141,0.3164926,94801.0,94800.0,0.5880599]
[1746065967243,0.3164926,94801.0,94800.0,0.3771]
[1746065968139,0.3164926,94801.0,94800.0,0.4142]
[1746065968833,0.3164926,94801.0,94800.0,0.6251599]
[1746065972728,0.3164926,94801.0,94800.0,0.3762]
[1746065973037,0.3164926,94801.0,94800.0,0.302]
[1746065973431,0.3164926,94801.0,94800.0,0.5129599]
[1746065974338,0.3164926,94801.0,94800.0,0.5854599]
[1746065977231,4e-05,94801.0,94800.0,0.5854599]
[1746065977644,0.0375,94808.0,94807.0,0.2109443]
[1746065977939,0.24849661,94808.0,94807.0,0.4809443]
[1746065978135,0.24849661,94808.0,94807.0,0.6029443]
[1746065978746,0.25049661,94808.0,94807.0,0.6029443]
[1746065979751,0.25249661,94808.0,94807.0,0.6029443]
[1746065992243,0.25249661,94808.0,94807.0,0.4809443]
[1746065993148,0.25249661,94808.0,94807.0,0.5159443]
[1746065995246,0.25249661,94808.0,94807.0,0.5544443]
[1746065996258,0.25249661,94808.0,94807.0,0.6764443]
[1746066003260,0.25249661,94808.0,94807.0,0.5544443]
[1746066003460,0.25249661,94808.0,94807.0,0.57011113]
[1746066003962,0.25249661,94808.0,94807.0,0.5544443]
[1746066004266,0.25249661,94808.0,94807.0,0.6764443]
[1746066004458,0.25249661,94808.0,94807.0,0.69213848]
[1746066004967,7.291e-05,94812.0,94811.0,0.2109354]
[1746066005257,0.27147472,94819.0,94818.0,0.2109198]
[1746066005462,0.2636494,94819.0,94818.0,0.8317198]
[1746066005862,0.2636494,94819.0,94818.0,0.4709198]
[1746066006163,0.2636494,94819.0,94818.0,0.6671198]
[1746066006561,0.2636894,94819.0,94818.0,0.6671198]
[1746066006760,0.2636894,94819.0,94818.0,0.677871]
[1746066007355,0.2636894,94819.0,94818.0,0.69432663]
[1746066007555,0.2636894,94819.0,94818.0,0.69432601]
[1746066007970,0.27478707,94819.0,94818.0,0.69432601]
[1746066008157,0.27778707,94819.0,94818.0,0.69432601]
[1746066008355,0.27778707,94819.0,94818.0,0.69432473]
[1746066009267,0.27778707,94819.0,94818.0,0.69435476]
[1746066010267,0.27778707,94819.0,94818.0,0.677871]
[1746066010959,0.27778707,94819.0,94818.0,0.4071198]
[1746066011264,0.27178707,94819.0,94818.0,0.5871198]
[1746066017270,0.27178707,94819.0,94818.0,0.1962]
[1746066017468,0.27178707,94819.0,94818.0,0.3762]
[1746066018174,0.27178707,94819.0,94818.0,0.2542]
[1746066018676,0.27178707,94819.0,94818.0,0.4651198]
[1746066021087,0.27178707,94819.0,94818.0,0.5871198]
[1746066022189,0.27178707,94819.0,94818.0,0.4651198]
[1746066023093,0.27178707,94819.0,94818.0,0.5871198]
[1746066024688,0.27178707,94819.0,94818.0,0.1962]
[1746066024887,0.27178707,94819.0,94818.0,0.3462]
[1746066026096,0.27178707,94819.0,94818.0,0.2242]
[1746066027093,0.27178707,94819.0,94818.0,0.4351198]
[1746066027479,0.27178707,94819.0,94818.0,0.2851198]
[1746066027791,0.27178707,94819.0,94818.0,0.4551198]
[1746066029391,0.27178707,94819.0,94818.0,0.2851198]
[1746066029590,0.27178707,94819.0,94818.0,0.4451198]
[1746066029993,0.27178707,94819.0,94818.0,0.0742]
[1746066030189,0.27178707,94819.0,94818.0,0.1962]
[1746066030386,0.27178707,94819.0,94818.0,0.3762]
[1746066031197,0.27178707,94819.0,94818.0,0.2542]
[1746066032595,0.27178707,94819.0,94818.0,0.27013737]
[1746066032898,0.27178707,94819.0,94818.0,0.27013736]
[1746066033898,0.27178707,94819.0,94818.0,0.2163]
[1746066034101,0.27178707,94819.0,94818.0,0.3383]
[1746066036099,0.27178707,94819.0,94818.0,0.2163]
[1746066036403,0.27178707,94819.0,94818.0,0.0363]
[1746066036594,0.2109354,94811.0,94810.0,0.06632]
[1746066036895,0.2109354,94811.0,94810.0,0.15632]
[1746066037484,0.2854354,94811.0,94810.0,0.15632]
[1746066037889,0.2854354,94811.0,94810.0,0.3692576]
[1746066038091,0.2109354,94811.0,94810.0,0.3692576]
[1746066038299,0.2636624,94816.0,94815.0,0.2636531]
[1746066038498,0.2636624,94816.0,94815.0,0.5516531]
[1746066038693,0.2636624,94816.0,94815.0,0.5867531]
[1746066039296,0.2636624,94816.0,94815.0,0.7087531]
[1746066039500,0.2637024,94816.0,94815.0,0.7097531]
[1746066039898,0.2637024,94816.0,94815.0,0.7107531]
[1746066041005,0.2637024,94816.0,94815.0,0.658022]
[1746066044304,0.210971,94816.0,94815.0,0.658022]
[1746066045303,4e-05,94816.0,94815.0,0.658022]
[1746066045511,5.401e-05,94821.0,94820.0,0.2109154]
[1746066045706,0.2108962,94829.0,94828.0,0.2108976]
[1746066045901,0.2108962,94829.0,94828.0,0.4408976]
[1746066046099,0.2108962,94829.0,94828.0,0.5628976]
[1746066046299,0.2109362,94829.0,94828.0,0.6358976]
[1746066046499,0.21890456,94829.0,94828.0,0.6358976]
[1746066047409,0.22090456,94829.0,94828.0,0.6358976]
[1746066048104,0.22290456,94829.0,94828.0,0.6358976]
[1746066048309,0.25780456,94829.0,94828.0,0.6002976]
[1746066048510,0.25780456,94829.0,94828.0,0.3702976]
[1746066048701,0.25780456,94829.0,94828.0,0.3802976]
[1746066050114,0.25780456,94829.0,94828.0,0.4802976]
[1746066050315,0.25780456,94829.0,94828.0,0.49076575]
[1746066050513,0.25780456,94829.0,94828.0,0.50076575]
[1746066050716,0.25780456,94829.0,94828.0,0.4902976]
[1746066051213,0.25780456,94829.0,94828.0,0.3682976]
[1746066053120,0.25780456,94829.0,94828.0,0.1574]
[1746066053414,0.2108976,94828.0,94827.0,0.06632]
[1746066053713,0.2109065,94824.0,94823.0,0.0366]
[1746066053914,0.2109065,94824.0,94823.0,0.20288]
[1746066054509,0.2847065,94824.0,94823.0,0.20288]
[1746066055115,0.2857065,94824.0,94823.0,0.20288]
[1746066055516,0.2867065,94824.0,94823.0,0.20288]
[1746066060515,0.2867065,94824.0,94823.0,0.4137887]
[1746066061511,0.2867065,94824.0,94823.0,0.20288]
[1746066064122,0.2867065,94824.0,94823.0,0.1366]
[1746066073223,0.2867065,94824.0,94823.0,0.1]
[1746066082228,0.0527316,94815.0,94808.0,0.16]
[1746066082427,0.3608,94809.0,94808.0,0.18]
[1746066082626,0.5717398,94809.0,94808.0,0.18]
[1746066082931,0.5717398,94809.0,94808.0,0.3909421]
[1746066083534,0.5717398,94809.0,94808.0,0.2873]
[1746066083835,0.5717398,94809.0,94808.0,0.2913]
[1746066084219,0.5717398,94809.0,94808.0,0.6242421]
[1746066085128,0.5717398,94809.0,94808.0,0.5022421]
[1746066085528,0.5717398,94809.0,94808.0,0.5002421]
[1746066085718,0.5717398,94809.0,94808.0,0.5022421]
[1746066093331,0.5717398,94809.0,94808.0,0.2913]
[1746066093530,0.6071398,94809.0,94808.0,0.2913]
[1746066094732,0.6434398,94809.0,94808.0,0.2913]
[1746066096333,0.5717398,94809.0,94808.0,0.2913]
[1746066097234,0.2109398,94809.0,94808.0,0.2913]
[1746066097435,0.5717398,94809.0,94808.0,0.2913]
[1746066097633,0.6422398,94809.0,94808.0,0.2913]
[1746066101633,0.6422398,94809.0,94808.0,0.5022421]
[1746066107038,0.6422398,94809.0,94808.0,0.2561]
[1746066109343,0.6422398,94809.0,94808.0,0.5890421]
[1746066109537,0.6422398,94809.0,94808.0,0.6254421]
[1746066109744,0.5717398,94809.0,94808.0,0.6254421]
[1746066109926,0.2109398,94809.0,94808.0,0.6254421]
[1746066110131,0.2109798,94809.0,94808.0,0.6254421]
[1746066115837,0.2109798,94809.0,94808.0,0.6916421]
[1746066116942,0.2109798,94809.0,94808.0,0.4807]
[1746066118433,0.2109798,94809.0,94808.0,0.6916421]
[1746066120751,0.2109398,94809.0,94808.0,0.6916421]
[1746066121050,0.2109798,94809.0,94808.0,0.6916421]
[1746066122044,0.2109798,94809.0,94808.0,0.70735449]
[1746066122551,0.2109798,94809.0,94808.0,0.7073551]
[1746066123053,0.2109798,94809.0,94808.0,0.70735626]
[1746066123350,0.2109798,94809.0,94808.0,0.70738495]
[1746066124052,0.2109798,94809.0,94808.0,0.6916421]
[1746066135346,4e-05,94809.0,94808.0,0.6916421]
[1746066135864,0.2109264,94816.0,94815.0,0.2109243]
[1746066136051,0.2109264,94816.0,94815.0,0.4609243]
[1746066136251,0.2109264,94816.0,94815.0,0.5829243]
[1746066136456,0.2451264,94816.0,94815.0,0.5829243]
[1746066136953,0.2451264,94816.0,94815.0,0.5839243]
[1746066137154,0.2451264,94816.0,94815.0,0.5849243]
[1746066142458,0.2451264,94816.0,94815.0,0.374]
[1746066143256,0.2451264,94816.0,94815.0,0.252]
[1746066158079,0.2451264,94816.0,94815.0,0.374]
[1746066158277,0.2109264,94816.0,94815.0,0.374]
[1746066158467,0.2109664,94816.0,94815.0,0.374]
[1746066158670,0.2109264,94816.0,94815.0,0.6569265]
[1746066158870,0.2109664,94816.0,94815.0,0.6569265]
[1746066159083,0.2109264,94816.0,94815.0,0.7230465]
[1746066159279,0.2109664,94816.0,94815.0,0.7230465]
[1746066159883,4e-05,94816.0,94815.0,0.7230465]
[1746066160186,0.21092,94822.0,94821.0,0.210904]
[1746066160483,0.21092,94822.0,94821.0,0.460904]
[1746066160884,0.21096,94822.0,94821.0,0.460904]
[1746066161080,0.21096,94822.0,94821.0,0.582904]
[1746066162586,0.21096,94822.0,94821.0,0.372]
[1746066162789,0.21096,94822.0,94821.0,0.4421]
[1746066163087,0.21096,94822.0,94821.0,0.6530131]
[1746066163680,0.57176,94822.0,94821.0,0.6530131]
[1746066166981,0.57176,94822.0,94821.0,0.4421]
[1746066167890,0.57176,94822.0,94821.0,0.1921]
[1746066168591,0.57176,94822.0,94821.0,0.1573]
[1746066169191,0.57176,94822.0,94821.0,0.0353]
[1746066171187,0.57176,94822.0,94821.0,0.1573]
[1746066188204,0.57176,94822.0,94821.0,0.0353]
[1746066188998,0.57176,94822.0,94787.0,0.3608]
[1746066188999,0.2109398,94809.0,94787.0,0.3608]
[1746066189199,0.2109398,94809.0,94808.0,0.58188]
[1746066189499,0.2109398,94809.0,94808.0,0.16608]
[1746066190193,0.2109398,94809.0,94808.0,0.20358]
[1746066190395,0.2109398,94809.0,94808.0,0.27698]
[1746066192298,0.2109398,94809.0,94808.0,0.6099221]
[1746066192703,0.2109798,94809.0,94808.0,0.6099221]
[1746066213205,5.401e-05,94815.0,94814.0,0.2109287]
[1746066213407,5.401e-05,94815.0,94814.0,0.8117287]
[1746066213609,0.2109265,94815.0,94814.0,0.8117287]
[1746066213809,0.2109665,94815.0,94814.0,0.8117287]
[1746066214319,0.2109665,94815.0,94814.0,0.9337287]
[1746066214815,0.2812665,94815.0,94814.0,0.9337287]
[1746066215017,0.2812665,94815.0,94814.0,0.9347287]
[1746066215618,0.2812665,94815.0,94814.0,0.9357287]
[1746066222413,0.2812665,94815.0,94814.0,1.0017687]
[1746066223506,0.38884315,94815.0,94814.0,1.0017687]
[1746066228018,0.2812665,94815.0,94814.0,1.0017687]
[1746066232430,0.2812665,94815.0,94814.0,0.7248]
[1746066232632,0.2812665,94815.0,94814.0,1.0017287]
[1746066234128,0.2812665,94815.0,94814.0,0.6409287]
[1746066235333,0.2812665,94815.0,94814.0,0.5749287]
[1746066235628,0.2812665,94815.0,94814.0,0.6409287]
[1746066243426,0.2812265,94815.0,94814.0,0.6409287]
[1746066247334,0.31850095,94816.0,94815.0,0.2109265]
[1746066247536,0.31850095,94816.0,94815.0,0.5766265]
[1746066247730,0.31854095,94816.0,94815.0,0.5766265]
[1746066248027,0.2109643,94816.0,94815.0,0.5766265]
[1746066248226,0.2109643,94816.0,94815.0,0.6986265]
[1746066248435,0.2109643,94816.0,94815.0,0.6996265]
[1746066249737,0.2109643,94816.0,94815.0,0.7006265]
[1746066252935,4e-05,94816.0,94815.0,0.7006265]
[1746066253133,0.2636547,94818.0,94817.0,0.2636476]
[1746066253333,0.2636547,94818.0,94817.0,0.5715476]
[1746066253930,0.2990547,94818.0,94817.0,0.5715476]
[1746066254233,0.2990547,94818.0,94817.0,0.6945476]
[1746066258139,0.2990547,94818.0,94817.0,0.6418176]
[1746066258328,0.40663135,94818.0,94817.0,0.3961]
[1746066258533,0.44173135,94818.0,94817.0,0.3961]
[1746066259241,0.44173135,94818.0,94817.0,0.2741]
[1746066260944,0.3341547,94818.0,94817.0,0.2741]
[1746066264648,0.3341547,94818.0,94817.0,0.485022]
[1746066267043,0.2990547,94818.0,94817.0,0.485022]
[1746066269253,0.2990547,94818.0,94817.0,0.607022]
[1746066270751,0.2990547,94818.0,94817.0,0.3961]
[1746066271254,0.2990547,94818.0,94817.0,0.2741]
[1746066272146,0.2990547,94818.0,94817.0,0.3961]